fUSD/lending_fUSD_20250514
["ID","MTS","AMOUNT","RATE_DAILY","PERIOD"]
[361091860,1747249833191,-9554.34168854,0.00011099,2]
[361091862,1747249833201,-299.99,0.00011099,2]
[361091864,1747249833210,-9999.99,0.00011099,2]
[361091866,1747249833220,-13661.20770817,0.00011099,2]
[361091868,1747249833230,-220.46957036,0.00011099,2]
[361091870,1747249833240,-4963.3476,0.000111,2]
[361091872,1747249833250,-2125.715,0.000111,2]
[361091874,1747249833260,-1245.7118,0.000111,2]
[361091876,1747249833270,-653.8233903,0.000111,2]
[361091878,1747249833280,-864.05076374,0.00011103,2]
[361091880,1747249833289,-653.82339029,0.0001111,2]
[361091882,1747249833300,-653.82339029,0.00011119,2]
[361091884,1747249833309,-200.0,0.00011124,2]
[361091886,1747249833319,-250.0,0.00011124,2]
[361091888,1747249833329,-200.0,0.0001114,2]
[361091890,1747249833339,-250.0,0.0001114,2]
[361091892,1747249833348,-500.0,0.00011173,2]
[361091894,1747249833358,-500.0,0.00011173,2]
[361091896,1747249833368,-470.04341748,0.00011173,2]
[361091898,1747249833378,-500.0,0.00011173,2]
[361091900,1747249833388,-500.0,0.00011173,2]
[361091902,1747249833398,-500.0,0.00011173,2]
[361091904,1747249833408,-154.59506227,0.00011173,2]
[361091906,1747249833417,-500.0,0.00011173,2]
[361091908,1747249833426,-500.0,0.00011173,2]
[361091910,1747249833435,-500.62795148,0.00011173,2]
[361091912,1747249833445,-500.0,0.00011173,2]
[361091914,1747249833455,-2678.151,0.00011173,2]
[361091916,1747249833464,-182.301,0.00011173,2]
[361091917,1747249833474,-628.0,0.00011176,2]
[361091918,1747249833484,-798.0,0.00011176,2]
[361091919,1747249833493,-553.0,0.00011176,2]
[361091920,1747249833503,-584.0,0.00011176,2]
[361091921,1747249833513,-919.0,0.00011176,2]
[361091922,1747249833521,-1251.0,0.00011176,2]
[361091923,1747249833531,-1457.0,0.00011176,2]
[361091924,1747249833540,-5940.0,0.00011176,2]
[361091925,1747249833550,-1147.0,0.00011176,2]
[361091926,1747249833559,-154.0,0.00011176,2]
[361091928,1747249833568,-4032.0,0.00011176,2]
[361091929,1747249833577,-6822.0,0.00011176,2]
[361091930,1747249833586,-837.0,0.00011176,2]
[361091931,1747249833596,-9554.3416885,0.00011186,2]
[361091932,1747249833605,-165.09,0.00011188,2]
[361091933,1747249833615,-165.09,0.00011188,2]
[361091934,1747249833624,-165.09,0.00011189,2]
[361091935,1747249833634,-165.09,0.00011189,2]
[361091936,1747249833643,-13661.20770811,0.0001119,2]
[361091937,1747249833652,-151.0,0.00011192,2]
[361091938,1747249833662,-152.80769174,0.00011192,2]
[361091939,1747249833671,-1439.04716418,0.00011192,2]
[361091940,1747249833680,-668.65185757,0.00011192,2]
[361091941,1747249833690,-400.0,0.00011198,2]
[361091942,1747249833699,-371.31361101,0.00011198,2]
[361091943,1747249833708,-469.84179327,0.00011198,2]
[361091944,1747249833718,-533.70906101,0.00011198,2]
[361091945,1747249833727,-2748.303334,0.00011198,2]
[361091946,1747249833736,-3247.850429,0.00011198,2]
[361091947,1747249833745,-1160.286736,0.00011198,2]
[361091948,1747249833755,-506.66,0.00011198,2]
[361091949,1747249833763,-400.0,0.00011198,2]
[361091950,1747249833773,-400.0,0.00011198,2]
[361091951,1747249833782,-400.0,0.00011198,2]
[361091952,1747249833791,-400.0,0.00011198,2]
[361091953,1747249833800,-400.0,0.00011198,2]
[361091954,1747249833810,-250.0,0.00011198,2]
[361091955,1747249833819,-944.82,0.00011198,2]
[361091956,1747249833828,-3248.27,0.00011198,2]
[361091957,1747249833837,-1716.74,0.00011198,2]
[361091958,1747249833846,-329.60063237,0.00011198,2]
[361091959,1747249833856,-1033.52,0.00011198,2]
[361091960,1747249833865,-400.0,0.00011198,2]
[361091961,1747249833874,-1273.28,0.00011198,2]
[361091962,1747249833884,-400.0,0.00011198,2]
[361091963,1747249833893,-400.0,0.00011198,2]
[361091964,1747249833902,-400.0,0.00011198,2]
[361091965,1747249833912,-515.84712983,0.00011198,2]
[361091966,1747249833921,-1305.41,0.00011198,2]
[361091967,1747249833931,-400.0,0.00011198,2]
[361091968,1747249833940,-400.0,0.00011198,2]
[361091969,1747249833950,-400.0,0.00011198,2]
[361091970,1747249833960,-439.63,0.00011198,2]
[361091971,1747249833969,-484.11,0.00011198,2]
[361091972,1747249833979,-400.0,0.00011198,2]
[361091973,1747249833988,-1070.41,0.00011198,2]
[361091974,1747249833998,-723.35,0.00011198,2]
[361091975,1747249834007,-400.0,0.00011198,2]
[361091976,1747249834019,-400.0,0.00011198,2]
[361091977,1747249834028,-594.91,0.00011198,2]
[361091978,1747249834038,-400.0,0.00011198,2]
[361091979,1747249834047,-588.59,0.00011198,2]
[361091980,1747249834058,-482.60489669,0.00011198,2]
[361091981,1747249834067,-400.0,0.00011198,2]
[361091982,1747249834076,-509.13115329,0.00011198,2]
[361091983,1747249834085,-716.89,0.00011198,2]
[361091984,1747249834095,-400.0,0.00011198,2]
[361091985,1747249834105,-1178.44,0.00011198,2]
[361091986,1747249834114,-400.0,0.00011198,2]
[361091987,1747249834123,-213.45732998,0.00011198,2]
[361091988,1747249834133,-4395.2,0.00011198,2]
[361091989,1747249834142,-654.31,0.00011198,2]
[361091990,1747249834152,-400.0,0.00011198,2]
[361091991,1747249834161,-400.0,0.00011198,2]
[361091992,1747249834171,-302.60776156,0.00011198,2]
[361091993,1747249834181,-400.0,0.00011198,2]
[361091994,1747249834191,-1099.62,0.00011198,2]
[361091995,1747249834201,-400.0,0.00011198,2]
[361091996,1747249834210,-640.9,0.00011198,2]
[361091997,1747249834220,-400.0,0.00011198,2]
[361091998,1747249834229,-920.08,0.00011198,2]
[361091999,1747249834239,-646.01,0.00011198,2]
[361092000,1747249834248,-1527.02,0.00011198,2]
[361092001,1747249834257,-400.0,0.00011198,2]
[361092002,1747249834266,-1566.7,0.00011198,2]
[361092003,1747249834277,-845.29,0.00011198,2]
[361092004,1747249834286,-77451.05,0.00011198,2]
[361092005,1747249834295,-451.89370204,0.00011198,2]
[361092006,1747249834306,-400.0,0.00011198,2]
[361092007,1747249834315,-1196.13,0.00011198,2]
[361092008,1747249834325,-400.0,0.00011198,2]
[361092009,1747249834334,-400.0,0.00011198,2]
[361092010,1747249834342,-400.0,0.00011198,2]
[361092011,1747249834352,-400.0,0.00011198,2]
[361092012,1747249834361,-784.47,0.00011198,2]
[361092013,1747249834371,-568.33,0.00011198,2]
[361092014,1747249834380,-1928.74,0.00011198,2]
[361092015,1747249834389,-400.0,0.00011198,2]
[361092016,1747249834399,-400.0,0.00011198,2]
[361092017,1747249834408,-400.0,0.00011198,2]
[361092018,1747249834417,-506.55,0.00011198,2]
[361092019,1747249834427,-2701.45,0.00011198,2]
[361092020,1747249834436,-757.7,0.00011198,2]
[361092021,1747249834445,-400.0,0.00011198,2]
[361092022,1747249834455,-575.01,0.00011198,2]
[361092023,1747249834464,-632.98,0.00011198,2]
[361092024,1747249834474,-4396.15,0.00011198,2]
[361092025,1747249834483,-571.1,0.00011198,2]
[361092026,1747249834493,-1261.11,0.00011198,2]
[361092027,1747249834503,-400.0,0.00011198,2]
[361092028,1747249834513,-400.0,0.00011198,2]
[361092029,1747249834522,-424.62,0.00011198,2]
[361092030,1747249834532,-400.0,0.00011198,2]
[361092031,1747249834540,-1132.52,0.00011198,2]
[361092032,1747249834550,-674.78,0.00011198,2]
[361092033,1747249834559,-558.89,0.00011198,2]
[361092034,1747249834569,-417.9218095,0.00011199,2]
[361092035,1747249834577,-203.02207592,0.00011199,2]
[361092036,1747249834586,-455.32513565,0.00011199,2]
[361092037,1747249834596,-404.47642541,0.00011199,2]
[361092038,1747249834605,-500.0,0.00011199,2]
[361092039,1747249834614,-504.60693247,0.00011199,2]
[361092040,1747249834622,-517.01655041,0.00011199,2]
[361092041,1747249834630,-450.0,0.00011199,2]
[361092042,1747249834638,-402.3746182,0.00011199,2]
[361092043,1747249834647,-400.0,0.00011199,2]
[361092044,1747249834656,-400.0,0.00011199,2]
[361092045,1747249834664,-402.25100972,0.00011199,2]
[361092046,1747249834672,-514.33388672,0.00011199,2]
[361092047,1747249834681,-439.678292,0.00011199,2]
[361092048,1747249834690,-400.0,0.00011199,2]
[361092049,1747249834698,-400.0,0.00011199,2]
[361092050,1747249834707,-1022.19,0.00011199,2]
[361092051,1747249834715,-445.61515128,0.00011199,2]
[361092052,1747249834722,-400.0,0.00011199,2]
[361092053,1747249834731,-400.0,0.00011199,2]
[361092054,1747249834739,-400.0,0.00011199,2]
[361092055,1747249834748,-400.0,0.00011199,2]
[361092056,1747249834757,-401.59953192,0.00011199,2]
[361092057,1747249834766,-400.0,0.00011199,2]
[361092058,1747249834775,-400.0,0.00011199,2]
[361092059,1747249834784,-400.0,0.00011199,2]
[361092060,1747249834793,-400.0,0.00011199,2]
[361092061,1747249834807,-400.0,0.00011199,2]
[361092062,1747249834816,-400.0,0.00011199,2]
[361092063,1747249834826,-453.93,0.00011199,2]
[361092064,1747249834836,-400.0,0.00011199,2]
[361092065,1747249834846,-400.0,0.00011199,2]
[361092066,1747249834856,-400.0,0.00011199,2]
[361092067,1747249834865,-400.0,0.00011199,2]
[361092068,1747249834876,-400.0,0.00011199,2]
[361092069,1747249834885,-400.0,0.00011199,2]
[361092070,1747249834894,-544.33,0.00011199,2]
[361092071,1747249834903,-400.0,0.00011199,2]
[361092072,1747249834913,-400.0,0.00011199,2]
[361092073,1747249834923,-292.41469568,0.00011199,2]
[361092074,1747249834932,-400.0,0.00011199,2]
[361092075,1747249834941,-400.0,0.00011199,2]
[361092076,1747249834950,-542.48,0.00011199,2]
[361092077,1747249834961,-495.81623175,0.00011199,2]
[361092078,1747249834971,-400.0,0.00011199,2]
[361092079,1747249834981,-469.6448385,0.00011199,2]
[361092080,1747249834991,-407.55408304,0.00011199,2]
[361092081,1747249835003,-400.0,0.00011199,2]
[361092082,1747249835014,-400.0,0.00011199,2]
[361092083,1747249835024,-400.0,0.00011199,2]
[361092084,1747249835035,-400.0,0.00011199,2]
[361092085,1747249835047,-400.0,0.00011199,2]
[361092086,1747249835056,-400.0,0.00011199,2]
[361092087,1747249835065,-400.0,0.00011199,2]
[361092088,1747249835074,-400.0,0.00011199,2]
[361092089,1747249835084,-400.0,0.00011199,2]
[361092090,1747249835093,-882.13,0.00011199,2]
[361092091,1747249835104,-164.8712068,0.00011199,2]
[361092092,1747249835114,-400.0,0.00011199,2]
[361092093,1747249835123,-400.0,0.00011199,2]
[361092094,1747249835133,-400.0,0.00011199,2]
[361092095,1747249835143,-464.48360676,0.00011199,2]
[361092096,1747249835152,-400.0,0.00011199,2]
[361092097,1747249835161,-400.0,0.00011199,2]
[361092098,1747249835170,-400.0,0.00011199,2]
[361092099,1747249835179,-402.01722187,0.00011199,2]
[361092100,1747249835189,-400.0,0.00011199,2]
[361092101,1747249835198,-400.0,0.00011199,2]
[361092102,1747249835207,-400.0,0.00011199,2]
[361092103,1747249835216,-400.0,0.00011199,2]
[361092104,1747249835226,-400.0,0.00011199,2]
[361092105,1747249835235,-426.82,0.00011199,2]
[361092106,1747249835243,-400.0,0.00011199,2]
[361092107,1747249835252,-400.0,0.00011199,2]
[361092108,1747249835262,-400.0,0.00011199,2]
[361092109,1747249835271,-400.0,0.00011199,2]
[361092110,1747249835280,-250.0,0.00011199,2]
[361092111,1747249835290,-400.0,0.00011199,2]
[361092112,1747249835299,-400.0,0.00011199,2]
[361092113,1747249835309,-400.0,0.00011199,2]
[361092114,1747249835318,-400.0,0.00011199,2]
[361092115,1747249835328,-400.0,0.00011199,2]
[361092116,1747249835337,-400.0,0.00011199,2]
[361092117,1747249835347,-472.92,0.00011199,2]
[361092118,1747249835356,-400.0,0.00011199,2]
[361092119,1747249835366,-400.0,0.00011199,2]
[361092120,1747249835375,-400.0,0.00011199,2]
[361092121,1747249835384,-400.0,0.00011199,2]
[361092122,1747249835393,-537.88,0.00011199,2]
[361092123,1747249835403,-400.0,0.00011199,2]
[361092124,1747249835412,-400.0,0.00011199,2]
[361092125,1747249835421,-400.0,0.00011199,2]
[361092126,1747249835431,-400.0,0.00011199,2]
[361092127,1747249835439,-400.0,0.00011199,2]
[361092128,1747249835448,-400.0,0.00011199,2]
[361092129,1747249835457,-400.0,0.00011199,2]
[361092130,1747249835466,-472.01673203,0.00011199,2]
[361092131,1747249835475,-400.0,0.00011199,2]
[361092132,1747249835484,-400.0,0.00011199,2]
[361092133,1747249835493,-400.0,0.00011199,2]
[361092134,1747249835502,-400.0,0.00011199,2]
[361092135,1747249835511,-535.25472723,0.00011199,2]
[361092136,1747249835520,-400.0,0.00011199,2]
[361092137,1747249835529,-400.0,0.00011199,2]
[361092138,1747249835539,-400.0,0.00011199,2]
[361092139,1747249835548,-400.0,0.00011199,2]
[361092140,1747249835557,-400.0,0.00011199,2]
[361092141,1747249835566,-400.0,0.00011199,2]
[361092142,1747249835575,-400.0,0.00011199,2]
[361092143,1747249835584,-434.34,0.00011199,2]
[361092144,1747249835594,-400.0,0.00011199,2]
[361092145,1747249835603,-400.0,0.00011199,2]
[361092146,1747249835612,-400.0,0.00011199,2]
[361092147,1747249835622,-400.0,0.00011199,2]
[361092148,1747249835631,-400.0,0.00011199,2]
[361092149,1747249835640,-400.0,0.00011199,2]
[361092150,1747249835648,-400.0,0.00011199,2]
[361092151,1747249835658,-400.0,0.00011199,2]
[361092152,1747249835667,-400.0,0.00011199,2]
[361092153,1747249835676,-400.0,0.00011199,2]
[361092154,1747249835686,-2235.71,0.00011199,2]
[361092155,1747249835695,-400.0,0.00011199,2]
[361092156,1747249835704,-400.0,0.00011199,2]
[361092157,1747249835713,-400.0,0.00011199,2]
[361092158,1747249835722,-400.0,0.00011199,2]
[361092159,1747249835731,-400.0,0.00011199,2]
[361092160,1747249835741,-400.0,0.00011199,2]
[361092161,1747249835750,-206.82022159,0.00011199,2]
[361092162,1747249835759,-400.0,0.00011199,2]
[361092163,1747249835768,-400.0,0.00011199,2]
[361092164,1747249835777,-400.0,0.00011199,2]
[361092165,1747249835786,-829.62,0.00011199,2]
[361092166,1747249835795,-400.0,0.00011199,2]
[361092167,1747249835805,-400.0,0.00011199,2]
[361092168,1747249835814,-439.10290397,0.00011199,2]
[361092169,1747249835824,-400.0,0.00011199,2]
[361092170,1747249835833,-400.0,0.00011199,2]
[361092171,1747249835842,-400.0,0.00011199,2]
[361092172,1747249835851,-400.0,0.00011199,2]
[361092173,1747249835860,-400.0,0.00011199,2]
[361092174,1747249835871,-400.0,0.00011199,2]
[361092175,1747249835881,-400.0,0.00011199,2]
[361092176,1747249835890,-400.0,0.00011199,2]
[361092177,1747249835900,-400.0,0.00011199,2]
[361092178,1747249835909,-400.0,0.00011199,2]
[361092179,1747249835919,-400.0,0.00011199,2]
[361092180,1747249835929,-400.0,0.00011199,2]
[361092181,1747249835942,-400.0,0.00011199,2]
[361092182,1747249835952,-400.0,0.00011199,2]
[361092183,1747249835960,-400.0,0.00011199,2]
[361092184,1747249835968,-400.0,0.00011199,2]
[361092185,1747249835977,-400.0,0.00011199,2]
[361092186,1747249835987,-400.0,0.00011199,2]
[361092187,1747249835996,-400.0,0.00011199,2]
[361092188,1747249836006,-400.0,0.00011199,2]
[361092189,1747249836016,-400.0,0.00011199,2]
[361092190,1747249836028,-400.0,0.00011199,2]
[361092191,1747249836037,-400.0,0.00011199,2]
[361092192,1747249836046,-400.0,0.00011199,2]
[361092193,1747249836056,-400.0,0.00011199,2]
[361092194,1747249836067,-400.0,0.00011199,2]
[361092195,1747249836076,-400.0,0.00011199,2]
[361092196,1747249836085,-400.0,0.00011199,2]
[361092197,1747249836095,-400.0,0.00011199,2]
[361092198,1747249836104,-400.0,0.00011199,2]
[361092199,1747249836114,-400.0,0.00011199,2]
[361092200,1747249836124,-400.0,0.00011199,2]
[361092201,1747249836133,-400.0,0.00011199,2]
[361092202,1747249836143,-400.0,0.00011199,2]
[361092203,1747249836152,-400.0,0.00011199,2]
[361092204,1747249836162,-400.0,0.00011199,2]
[361092205,1747249836171,-400.0,0.00011199,2]
[361092206,1747249836180,-400.0,0.00011199,2]
[361092207,1747249836190,-400.0,0.00011199,2]
[361092208,1747249836199,-400.0,0.00011199,2]
[361092209,1747249836209,-422.11,0.00011199,2]
[361092210,1747249836218,-400.0,0.00011199,2]
[361092211,1747249836228,-400.0,0.00011199,2]
[361092212,1747249836237,-400.0,0.00011199,2]
[361092213,1747249836246,-400.0,0.00011199,2]
[361092214,1747249836256,-400.0,0.00011199,2]
[361092215,1747249836265,-400.0,0.00011199,2]
[361092216,1747249836274,-400.0,0.00011199,2]
[361092217,1747249836283,-500.0,0.00011199,2]
[361092218,1747249836292,-400.0,0.00011199,2]
[361092219,1747249836302,-400.0,0.00011199,2]
[361092220,1747249836311,-400.0,0.00011199,2]
[361092221,1747249836320,-400.0,0.00011199,2]
[361092222,1747249836330,-414.57,0.00011199,2]
[361092223,1747249836339,-400.0,0.00011199,2]
[361092224,1747249836348,-400.0,0.00011199,2]
[361092225,1747249836359,-529.27961916,0.00011199,2]
[361092226,1747249836370,-400.0,0.00011199,2]
[361092227,1747249836379,-400.0,0.00011199,2]
[361092228,1747249836389,-400.0,0.00011199,2]
[361092229,1747249836398,-559.52,0.00011199,2]
[361092230,1747249836407,-400.0,0.00011199,2]
[361092231,1747249836416,-400.0,0.00011199,2]
[361092232,1747249836424,-400.0,0.00011199,2]
[361092233,1747249836435,-400.0,0.00011199,2]
[361092234,1747249836446,-400.0,0.00011199,2]
[361092235,1747249836456,-400.0,0.00011199,2]
[361092236,1747249836466,-400.0,0.00011199,2]
[361092237,1747249836475,-400.0,0.00011199,2]
[361092238,1747249836486,-400.0,0.00011199,2]
[361092239,1747249836495,-400.0,0.00011199,2]
[361092240,1747249836506,-400.0,0.00011199,2]
[361092241,1747249836516,-400.0,0.00011199,2]
[361092242,1747249836526,-400.0,0.00011199,2]
[361092243,1747249836535,-531.74,0.00011199,2]
[361092244,1747249836545,-400.0,0.00011199,2]
[361092245,1747249836777,-400.0,0.00011199,2]
[361092246,1747249836787,-400.0,0.00011199,2]
[361092247,1747249836796,-400.0,0.00011199,2]
[361092248,1747249836806,-400.0,0.00011199,2]
[361092249,1747249836816,-400.0,0.00011199,2]
[361092250,1747249836825,-400.0,0.00011199,2]
[361092251,1747249836836,-400.0,0.00011199,2]
[361092252,1747249836849,-400.0,0.00011199,2]
[361092253,1747249836864,-400.0,0.00011199,2]
[361092254,1747249836875,-400.0,0.00011199,2]
[361092255,1747249836884,-400.0,0.00011199,2]
[361092256,1747249836893,-464.47,0.00011199,2]
[361092257,1747249836903,-400.0,0.00011199,2]
[361092258,1747249836912,-613.95,0.00011199,2]
[361092259,1747249836921,-537.58,0.00011199,2]
[361092260,1747249836930,-500.0,0.00011199,2]
[361092261,1747249836940,-400.0,0.00011199,2]
[361092262,1747249836948,-508.51756232,0.00011199,2]
[361092263,1747249836957,-480.26,0.00011199,2]
[361092264,1747249836967,-1000.0,0.00011199,2]
[361092265,1747249836975,-400.0,0.00011199,2]
[361092266,1747249836985,-400.0,0.00011199,2]
[361092267,1747249836995,-400.0,0.00011199,2]
[361092268,1747249837005,-400.0,0.00011199,2]
[361092269,1747249837017,-470.00431052,0.00011199,2]
[361092270,1747249837029,-400.0,0.00011199,2]
[361092271,1747249837038,-400.0,0.00011199,2]
[361092272,1747249837048,-400.0,0.00011199,2]
[361092273,1747249837059,-400.0,0.00011199,2]
[361092274,1747249837068,-400.0,0.00011199,2]
[361092275,1747249837078,-400.0,0.00011199,2]
[361092276,1747249837087,-454.67,0.00011199,2]
[361092277,1747249837097,-400.0,0.00011199,2]
[361092278,1747249837107,-411.50142867,0.00011199,2]
[361092279,1747249837117,-400.0,0.00011199,2]
[361092280,1747249837125,-400.0,0.00011199,2]
[361092281,1747249837133,-400.0,0.00011199,2]
[361092282,1747249837142,-285.66205294,0.00011199,2]
[361092283,1747249837151,-428.38756497,0.00011199,2]
[361092284,1747249837159,-1253.8,0.00011199,2]
[361092285,1747249837167,-400.0,0.00011199,2]
[361092286,1747249837176,-400.0,0.00011199,2]
[361092287,1747249837185,-433.33,0.00011199,2]
[361092288,1747249837194,-400.0,0.00011199,2]
[361092289,1747249837204,-5122.29,0.00011199,2]
[361092290,1747249837214,-400.0,0.00011199,2]
[361092291,1747249837224,-400.0,0.00011199,2]
[361092292,1747249837233,-400.0,0.00011199,2]
[361092293,1747249837243,-400.0,0.00011199,2]
[361092294,1747249837253,-400.0,0.00011199,2]
[361092295,1747249837262,-500.0,0.00011199,2]
[361092296,1747249837271,-500.0,0.00011199,2]
[361092297,1747249837281,-400.0,0.00011199,2]
[361092298,1747249837290,-400.0,0.00011199,2]
[361092299,1747249837300,-400.0,0.00011199,2]
[361092300,1747249837309,-568.26,0.00011199,2]
[361092301,1747249837319,-444.87,0.00011199,2]
[361092302,1747249837329,-503.50124388,0.00011199,2]
[361092303,1747249837338,-400.0,0.00011199,2]
[361092304,1747249837348,-753.01,0.00011199,2]
[361092305,1747249837357,-400.0,0.00011199,2]
[361092306,1747249837367,-400.0,0.00011199,2]
[361092307,1747249837376,-400.0,0.00011199,2]
[361092308,1747249837386,-400.0,0.00011199,2]
[361092309,1747249837395,-11338.0,0.00011199,2]
[361092310,1747249837405,-1201.62,0.00011199,2]
[361092311,1747249837414,-1248.91,0.00011199,2]
[361092312,1747249837423,-482.53,0.00011199,2]
[361092313,1747249837433,-1191.3,0.00011199,2]
[361092314,1747249837442,-400.0,0.00011199,2]
[361092315,1747249837451,-400.0,0.00011199,2]
[361092316,1747249837461,-244.57361184,0.00011199,2]
[361092317,1747249837469,-400.0,0.00011199,2]
[361092318,1747249837479,-400.0,0.00011199,2]
[361092319,1747249837488,-1310.66,0.00011199,2]
[361092320,1747249837497,-400.0,0.00011199,2]
[361092321,1747249837507,-185.56112605,0.00011199,2]
[361092322,1747249837516,-400.0,0.00011199,2]
[361092323,1747249837525,-400.0,0.00011199,2]
[361092324,1747249837533,-400.0,0.00011199,2]
[361092325,1747249837541,-400.0,0.00011199,2]
[361092326,1747249837549,-2281.23,0.00011199,2]
[361092327,1747249837558,-746.2,0.00011199,2]
[361092328,1747249837568,-400.0,0.00011199,2]
[361092329,1747249837579,-400.0,0.00011199,2]
[361092330,1747249837588,-400.0,0.00011199,2]
[361092331,1747249837596,-400.0,0.00011199,2]
[361092332,1747249837605,-400.0,0.00011199,2]
[361092333,1747249837613,-400.0,0.00011199,2]
[361092334,1747249837622,-403.99,0.00011199,2]
[361092335,1747249837632,-1496.31,0.00011199,2]
[361092336,1747249837641,-1698.57,0.00011199,2]
[361092337,1747249837650,-400.0,0.00011199,2]
[361092338,1747249837659,-603.93,0.00011199,2]
[361092339,1747249837669,-400.0,0.00011199,2]
[361092340,1747249837678,-400.0,0.00011199,2]
[361092341,1747249837687,-400.0,0.00011199,2]
[361092342,1747249837697,-400.0,0.00011199,2]
[361092343,1747249837707,-894.07,0.00011199,2]
[361092344,1747249837716,-400.0,0.00011199,2]
[361092345,1747249837726,-400.0,0.00011199,2]
[361092346,1747249837736,-1460.17,0.00011199,2]
[361092347,1747249837745,-400.0,0.00011199,2]
[361092348,1747249837755,-400.0,0.00011199,2]
[361092349,1747249837764,-400.0,0.00011199,2]
[361092350,1747249837774,-400.0,0.00011199,2]
[361092351,1747249837784,-400.0,0.00011199,2]
[361092352,1747249837793,-862.95,0.00011199,2]
[361092353,1747249837803,-400.0,0.00011199,2]
[361092354,1747249837813,-400.0,0.00011199,2]
[361092355,1747249837823,-2692.48,0.00011199,2]
[361092356,1747249837832,-400.0,0.00011199,2]
[361092357,1747249837842,-400.0,0.00011199,2]
[361092358,1747249837852,-1112.76,0.00011199,2]
[361092359,1747249837861,-400.0,0.00011199,2]
[361092360,1747249837871,-647.07,0.00011199,2]
[361092361,1747249837881,-9004.86,0.00011199,2]
[361092362,1747249837890,-400.0,0.00011199,2]
[361092363,1747249837900,-400.0,0.00011199,2]
[361092364,1747249837910,-893.32,0.00011199,2]
[361092365,1747249837919,-400.0,0.00011199,2]
[361092366,1747249837929,-400.0,0.00011199,2]
[361092367,1747249837938,-400.0,0.00011199,2]
[361092368,1747249837948,-400.0,0.00011199,2]
[361092369,1747249837957,-400.0,0.00011199,2]
[361092370,1747249837966,-7062.84,0.00011199,2]
[361092371,1747249837976,-1979.76,0.00011199,2]
[361092372,1747249837986,-400.0,0.00011199,2]
[361092373,1747249837995,-600.34,0.00011199,2]
[361092374,1747249838005,-400.0,0.00011199,2]
[361092375,1747249838017,-400.0,0.00011199,2]
[361092376,1747249838027,-1905.38,0.00011199,2]
[361092377,1747249838037,-400.0,0.00011199,2]
[361092378,1747249838047,-400.0,0.00011199,2]
[361092379,1747249838057,-476.14,0.00011199,2]
[361092380,1747249838066,-400.0,0.00011199,2]
[361092381,1747249838076,-400.0,0.00011199,2]
[361092382,1747249838085,-450.66,0.00011199,2]
[361092383,1747249838097,-400.0,0.00011199,2]
[361092385,1747249838107,-400.86,0.00011199,2]
[361092387,1747249838117,-400.0,0.00011199,2]
[361092388,1747249838127,-400.0,0.00011199,2]
[361092389,1747249838136,-400.0,0.00011199,2]
[361092390,1747249838146,-400.0,0.00011199,2]